bitfinex-derivatives/quotes_SOLF0:USTF0_20250127
["timestamp","ask_amount","ask_price","bid_price","bid_amount"]
[1738011989329,27.03247129,236.53,236.45,0.03130142]
[1738011989528,27.03247129,236.53,236.33,2.6335]
[1738011989721,30.31247129,236.53,236.46,0.0277714]
[1738011989927,30.31247129,236.53,236.33,2.6335]
[1738011990133,30.31247129,236.53,236.47,0.02822345]
[1738011990332,4.2302,236.45,236.33,2.6335]
[1738011990733,4.2304,236.44,236.37,4.25938924]
[1738011990936,30.31247129,236.53,236.33,2.6335]
[1738011991236,27.03247129,236.53,236.38,0.03206085]
[1738011991441,1.3853,236.55,236.38,0.03206085]
[1738011991636,1.3853,236.55,236.36,27.03247129]
[1738011991841,1.3853,236.55,236.44,0.02935098]
[1738011992038,27.03247129,236.53,236.44,0.02935098]
[1738011992438,4.2302,236.45,236.44,0.02935098]
[1738011993234,27.03247129,236.49,236.33,2.6335]
[1738011993841,4.23,236.46,236.33,2.6335]
[1738011994042,27.03247129,236.57,236.36,27.03247129]
[1738011994446,0.02686413,236.49,236.44,0.0292247]
[1738011994938,4.2297,236.48,236.44,0.0292247]
[1738011995137,0.02686413,236.49,236.45,4.2301]
[1738011995336,0.02686413,236.49,236.44,0.0292247]
[1738011997255,4.25646413,236.49,236.44,0.0292247]
[1738011997742,0.02686413,236.49,236.44,0.0292247]
[1738011998136,4.23,236.46,236.44,0.0292247]
[1738011998342,0.02686413,236.49,236.44,0.0292247]
[1738011998543,0.02686413,236.49,236.44,2.47e-05]
[1738011998841,4.2302,236.45,236.44,2.47e-05]
[1738011999040,0.02686413,236.49,236.44,2.47e-05]
[1738012000747,0.02686413,236.49,236.48,4.2297]
[1738012001745,0.02686413,236.49,236.44,2.47e-05]
[1738012002341,0.02686413,236.49,236.48,4.2297]
[1738012003146,0.02686413,236.49,236.46,4.2299]
[1738012003352,0.02686413,236.49,236.44,2.47e-05]
[1738012004057,0.02686413,236.49,236.46,4.2299]
[1738012004748,0.02686413,236.49,236.44,2.47e-05]
[1738012004749,4.25646413,236.49,236.44,4.2303247]
[1738012005347,0.02686413,236.49,236.44,2.47e-05]
[1738012005548,26.90007542,236.56,236.44,2.47e-05]
[1738012005856,4.2302,236.45,236.44,2.47e-05]
[1738012008657,4.23,236.46,236.44,2.47e-05]
[1738012008957,0.02731121,236.47,236.44,2.47e-05]
[1738012009262,0.00371483,236.47,236.46,4.23]
[1738012009861,4.2283,236.56,236.44,27.03249599]
[1738012010153,27.03247129,236.68,236.48,27.03247129]
[1738012010360,3.24,236.67,236.48,27.03247129]
[1738012010562,27.03247129,236.72,236.58,4.2278]
[1738012010755,3.24,236.74,236.52,27.03247129]
[1738012010952,3.24,236.74,236.61,4.2272]
[1738012011154,27.03247129,236.72,236.61,0.03197965]
[1738012011355,27.03247129,236.68,236.61,0.03197965]
[1738012011762,4.2271,236.63,236.61,0.03197965]
[1738012012854,27.03247129,236.72,236.61,0.03197965]
[1738012013760,4.2267,236.65,236.61,0.03197965]
[1738012014159,27.03247129,236.72,236.61,0.03197965]
[1738012014357,6.4182,236.75,236.61,0.03197965]
[1738012014553,27.03247129,236.72,236.61,0.03197965]
[1738012014756,4.227,236.63,236.61,0.03197965]
[1738012015354,4.227,236.63,236.47,27.03247129]
[1738012015355,4.2272,236.62,236.47,27.03247129]
[1738012015561,27.03247129,236.68,236.47,27.03247129]
[1738012015757,27.03247129,236.6,236.39,31.26367129]
[1738012015953,1.366,236.59,236.39,27.03247129]
[1738012016160,27.03247129,236.64,236.43,27.03247129]
[1738012016360,27.03247129,236.64,236.49,4.2294]
[1738012016560,4.26006026,236.56,236.51,0.03168341]
[1738012016757,0.03176026,236.56,236.51,0.03168341]
[1738012017065,4.2288,236.53,236.51,0.03168341]
[1738012017265,0.03176026,236.56,236.39,27.03247129]
[1738012017563,4.2293,236.51,236.39,27.03247129]
[1738012017754,27.03247129,236.6,236.39,27.03247129]
[1738012017960,27.03247129,236.64,236.47,4.2298]
[1738012018164,27.03247129,236.64,236.43,27.03247129]
[1738012018359,0.02977064,236.58,236.44,1.4268]
[1738012018562,0.02977064,236.58,236.53,0.03141386]
[1738012018763,4.2284,236.55,236.53,0.03141386]
[1738012019062,0.02977064,236.58,236.53,0.03141386]
[1738012019661,0.02977064,236.58,236.53,4.26021386]
[1738012020063,0.02977064,236.58,236.53,0.03141386]
[1738012020464,27.03247129,236.57,236.38,2.7947]
[1738012020658,27.03247129,236.53,236.38,2.7947]
[1738012020863,30.27247129,236.53,236.32,1.3306]
[1738012021059,27.03247129,236.49,236.32,1.3306]
[1738012021362,27.03247129,236.41,236.26,1.4349]
[1738012021767,0.03072596,236.36,236.31,0.02680255]
[1738012022068,3.24,236.4,236.26,1.4349]
[1738012022461,0.02839678,236.36,236.31,0.03052094]
[1738012022668,0.02839678,236.36,236.34,4.2322]
[1738012023066,0.02839678,236.36,236.31,0.03052094]
[1738012024163,27.03247129,236.54,236.32,27.03247129]
[1738012024471,1.4175,236.6,236.53,4.2288]
[1738012024765,27.03247129,236.65,236.44,27.03247129]
[1738012024966,27.03247129,236.57,236.46,4.23]
[1738012025170,27.03247129,236.57,236.41,1.4231]
[1738012025466,0.02957675,236.54,236.49,0.02852419]
[1738012025862,27.03247129,236.53,236.33,1.4266]
[1738012026068,28.44997129,236.53,236.33,2.7229]
[1738012026264,27.03247129,236.53,236.33,2.7229]
[1738012026660,27.03247129,236.49,236.33,2.7229]
[1738012026964,27.03247129,236.45,236.24,27.03247129]
[1738012027166,0.02997999,236.43,236.39,0.03230371]
[1738012027568,1.3517,236.48,236.27,27.03247129]
[1738012027869,0.03032572,236.43,236.39,0.02773259]
[1738012028169,27.03247129,236.53,236.31,27.03247129]
[1738012028170,4.229,236.52,236.31,27.03247129]
[1738012028561,0.02847589,236.43,236.42,4.2308]
[1738012028763,4.2284,236.56,236.39,0.02884598]
[1738012028965,4.2284,236.56,236.36,2.8056]
[1738012029271,4.228,236.58,236.51,4.2291]
[1738012029465,3.28,236.59,236.39,27.03247129]
[1738012029866,0.02907873,236.51,236.47,0.03218991]
[1738012030067,45.83979898,236.72,236.43,27.03247129]
[1738012030268,4.2267,236.65,236.58,4.2278]
[1738012030772,31.25877129,236.68,236.54,4.2286]
[1738012030966,27.03247129,236.68,236.49,1.4115]
[1738012031270,0.03236851,236.61,236.56,0.02952975]
[1738012031971,0.03236851,236.61,236.58,4.2279]
[1738012032267,0.03236851,236.61,236.56,0.02952975]
[1738012032573,4.25976851,236.61,236.56,0.02952975]
[1738012032872,0.03236851,236.61,236.56,0.02952975]
[1738012033068,4.2276,236.6,236.56,0.02952975]
[1738012033270,0.03236851,236.61,236.56,0.02952975]
[1738012034471,27.03247129,236.6,236.42,10.20028642]
[1738012034670,27.03247129,236.52,236.37,2.6367]
[1738012035572,8.186e-05,236.47,236.45,27.03247129]
[1738012035768,27.03247129,236.68,236.46,1.3187]
[1738012036469,4.2274,236.61,236.54,4.2286]
[1738012036665,0.5384,236.74,236.53,27.03247129]
[1738012036975,0.5384,236.74,236.57,27.03247129]
[1738012037167,2.7036,236.75,236.57,27.03247129]
[1738012037568,6.9285,236.75,236.62,4.2271]
[1738012037770,27.03247129,236.8,236.57,27.03247129]
[1738012037967,27.03247129,236.76,236.54,2.8083]
[1738012038167,27.03247129,236.76,236.66,0.0277913]
[1738012038766,4.2256,236.71,236.66,0.0277913]
[1738012038970,27.03247129,236.76,236.66,0.0277913]
[1738012039472,4.2255,236.72,236.66,0.0277913]
[1738012039675,27.03247129,236.76,236.66,0.0277913]
[1738012040066,27.03247129,236.76,236.67,4.2262]
[1738012040067,31.25727129,236.76,236.67,4.2262]
[1738012040265,27.03247129,236.8,236.66,0.0277913]
[1738012040470,27.03247129,236.8,236.57,27.03247129]
[1738012040774,4.2248,236.76,236.66,4.25840784]
[1738012040968,4.2248,236.76,236.66,0.03210784]
[1738012041674,27.03247129,236.8,236.66,0.03210784]
[1738012042076,27.03247129,236.76,236.66,0.03210784]
[1738012042374,27.03247129,236.76,236.57,27.03247129]
[1738012042568,27.03247129,236.76,236.69,0.03181677]
[1738012042767,27.03247129,236.8,236.57,27.03247129]
[1738012043068,27.03247129,236.84,236.7,0.02930816]
[1738012043272,27.03247129,236.84,236.62,1.4068]
[1738012043469,27.03247129,236.84,236.75,0.03045576]
[1738012045179,27.03247129,236.88,236.75,0.03045576]
[1738012045379,27.03247129,236.88,236.67,1.3302]
[1738012045672,27.03247129,236.88,236.79,0.02921884]
[1738012045877,4.224,236.8,236.79,0.02921884]
[1738012046279,27.03247129,236.84,236.67,1.3302]
[1738012046470,27.03247129,236.79,236.62,1.4068]
[1738012047278,4.2254,236.72,236.62,1.4068]
[1738012047474,0.0272302,236.73,236.68,0.02750219]
[1738012048176,0.0272302,236.73,236.68,4.25360219]
[1738012048579,0.0272302,236.73,236.68,0.02750219]
[1738012048780,27.03247129,236.87,236.68,0.02750219]
[1738012049081,27.03247129,236.87,236.69,27.03247129]
[1738012049279,4.7196,236.9,236.7,1.4061]
[1738012049983,4.7196,236.9,236.78,0.03252095]
[1738012050179,3.32,236.9,236.78,0.03252095]
[1738012050571,27.03247129,236.91,236.78,0.03252095]
[1738012050976,27.03247129,236.91,236.81,4.2236]
[1738012051473,27.03247129,236.91,236.84,0.03156417]
[1738012052080,27.03247129,236.91,236.69,27.03247129]
[1738012052378,0.5325,236.94,236.69,27.03247129]
[1738012052379,4.2233,236.84,236.69,27.03247129]
[1738012052579,27.03247129,236.87,236.77,4.2244]
[1738012052778,27.03247129,236.87,236.69,27.03247129]
[1738012052979,27.03247129,236.87,236.65,28.37377129]
[1738012053179,27.03247129,236.83,236.65,1.3413]
[1738012053381,0.02846395,236.78,236.74,0.03007503]
[1738012053586,0.02846395,236.78,236.65,1.3413]
[1738012054581,0.02846395,236.78,236.61,1.3554]
[1738012054881,27.03247129,236.79,236.69,0.03189932]
[1738012055076,0.02970834,236.72,236.69,0.03189932]
[1738012056681,4.2258,236.7,236.69,0.03189932]
[1738012057083,0.02970834,236.72,236.58,2.7461]
[1738012057284,4.2261,236.69,236.62,4.2271]
[1738012057586,27.03247129,236.75,236.62,4.2271]
[1738012057883,4.226,236.69,236.62,4.2271]
[1738012058079,0.02985549,236.68,236.58,1.4118]
[1738012058284,0.02985549,236.68,236.63,0.03159075]
[1738012058788,4.2266,236.65,236.63,0.03159075]
[1738012059685,4.2265,236.67,236.63,0.03159075]
[1738012061588,0.02985549,236.68,236.63,0.03159075]
[1738012062889,0.02985549,236.68,236.67,4.2263]
[1738012063293,0.02985549,236.68,236.63,0.03159075]
[1738012064492,27.03247129,236.83,236.65,27.03247129]
[1738012064693,4.6429,236.86,236.65,16.44772124]
[1738012064694,1.3907,236.85,236.65,16.44772124]
[1738012064995,4.2246,236.77,236.65,16.44772124]
[1738012065193,1.3907,236.85,236.65,16.44772124]
[1738012065497,16.44772124,236.82,236.64,2.8228]
[1738012065792,0.02765395,236.77,236.73,0.02699275]
[1738012065996,4.225,236.74,236.73,0.02699275]
[1738012066595,0.02765395,236.77,236.73,0.02699275]
[1738012067195,0.02765395,236.77,236.73,4.25219275]
[1738012067495,0.02765395,236.77,236.73,0.02699275]
[1738012067697,0.02765395,236.77,236.73,1.37579275]
[1738012067899,0.02765395,236.77,236.76,4.2247]
[1738012068094,0.02765395,236.77,236.73,1.37579275]
[1738012068292,4.25225395,236.77,236.73,0.02699275]
[1738012068494,0.02765395,236.77,236.73,0.02699275]
[1738012070006,4.225,236.74,236.73,0.02699275]
[1738012070806,26.73007465,236.76,236.54,26.73007465]
[1738012071000,26.73007465,236.72,236.55,1.386]
[1738012071308,4.2252,236.73,236.55,2.8173]
[1738012071505,26.73007465,236.76,236.55,2.8173]
[1738012071705,26.73007465,236.76,236.61,4.2273]
[1738012071903,0.03009504,236.68,236.63,0.03216051]
[1738012072305,26.73007465,236.72,236.55,2.8173]
[1738012072497,0.02896968,236.68,236.63,0.0274224]
[1738012073302,0.02896968,236.68,236.64,4.2268]
[1738012073497,26.75904433,236.68,236.63,0.0274224]
[1738012074409,0.02896968,236.68,236.63,0.0274224]
[1738012076410,4.2264,236.67,236.63,0.0274224]
[1738012076603,0.02896968,236.68,236.63,0.0274224]
[1738012077609,0.02896968,236.68,236.67,4.2263]
[1738012077809,0.02896968,236.68,236.63,0.0274224]
[1738012078608,4.2265,236.66,236.63,0.0274224]
[1738012079009,0.02896968,236.68,236.63,0.0274224]
[1738012079308,4.2267,236.65,236.63,0.0274224]
[1738012079809,26.75904433,236.68,236.63,0.0274224]
[1738012080509,30.98514433,236.68,236.63,4.2544224]
[1738012080708,26.75904433,236.68,236.63,0.0274224]
[1738012081210,0.02896968,236.68,236.63,0.0274224]
[1738012081607,0.02896968,236.68,236.67,4.2263]
[1738012082611,0.02896968,236.68,236.63,0.0274224]
[1738012083309,0.02896968,236.68,236.67,4.2263]
[1738012083706,0.02896968,236.68,236.64,4.2267]
[1738012083905,0.02896968,236.68,236.63,0.0274224]
[1738012084305,26.73007465,236.76,236.63,0.0274224]
[1738012084306,26.73007465,236.8,236.63,0.0274224]
[1738012084611,30.95157465,236.94,236.71,26.73007465]
[1738012084813,30.95157465,236.94,236.72,2.8257]
[1738012085111,26.73007465,236.94,236.75,26.73007465]
[1738012085312,30.95157465,236.94,236.85,4.223]
[1738012085506,0.02666632,236.87,236.79,26.73007465]
[1738012085709,1.4215,236.99,236.82,0.03048317]
[1738012086110,1.4215,236.99,236.79,26.73007465]
[1738012086311,1.4215,236.99,236.76,26.73007465]
[1738012086713,26.73007465,236.98,236.76,26.73007465]
[1738012086911,0.03067166,236.9,236.85,0.02897435]
[1738012087410,0.03067166,236.9,236.88,4.2225]
[1738012087713,0.03067166,236.9,236.85,0.02897435]
[1738012089709,4.2227,236.88,236.85,0.02897435]
[1738012090305,0.03067166,236.9,236.85,0.02897435]
[1738012091814,4.2224,236.89,236.85,0.02897435]
[1738012092015,0.03067166,236.9,236.85,0.02897435]
[1738012093218,0.03067166,236.9,236.88,4.2225]
[1738012093711,0.03067166,236.9,236.89,4.2224]
[1738012094510,0.03067166,236.9,236.85,4.25187435]
[1738012094817,0.03067166,236.9,236.85,0.02897435]
[1738012095817,16.43398535,237.0,236.85,0.02897435]
[1738012096217,16.43398535,237.0,236.79,16.43398535]
[1738012097021,0.02110783,236.92,236.87,0.02718537]
[1738012097215,0.02110783,236.92,236.91,4.222]
[1738012099010,0.02110783,236.92,236.87,0.02718537]
[1738012099817,0.02110783,236.92,236.89,4.2223]
[1738012100019,16.43398535,237.08,236.91,16.43398535]
[1738012100718,16.43398535,237.08,236.88,1.3729]
[1738012100917,16.43398535,237.08,236.97,4.2209]
[1738012101115,16.43398535,237.08,236.89,1.3578]
[1738012101318,16.43398535,237.08,236.96,0.03064648]
[1738012102023,4.2197,237.04,236.98,4.2207]
[1738012102320,16.43398535,237.08,236.96,0.03064648]
[1738012102714,4.2201,237.02,236.96,0.03064648]
[1738012103015,16.43398535,237.08,236.96,0.03064648]
[1738012103216,4.2195,237.05,236.98,4.2207]
[1738012103523,4.2195,237.05,236.96,0.03064648]
[1738012103816,4.2195,237.05,236.97,4.2208]
[1738012104120,16.43398535,237.08,236.96,0.03064648]
[1738012104321,4.2197,237.04,236.96,0.03064648]
[1738012104520,16.43398535,237.12,236.96,0.03064648]
[1738012104722,16.43398535,237.12,236.89,1.3578]
[1738012105019,16.43398535,237.08,237.02,6.42e-06]
[1738012105220,2.7262,237.07,237.02,6.42e-06]
[1738012105425,4.22,237.03,237.02,6.42e-06]
[1738012107627,0.03194909,237.05,237.02,6.42e-06]
[1738012108130,4.2199,237.03,237.02,6.42e-06]
[1738012111330,4.221,236.97,236.89,1.3578]
[1738012111631,16.43398535,237.04,236.89,1.3578]
[1738012111821,4.221,236.97,236.89,1.3578]
[1738012112022,4.221,236.97,236.91,4.2218]
[1738012112327,16.43398535,237.04,236.89,1.3578]
[1738012112630,0.03091117,236.96,236.92,0.02696407]
[1738012113128,16.43398535,237.08,236.92,0.02696407]
[1738012113427,16.43398535,237.04,236.89,1.3578]
[1738012113622,4.2205,237.0,236.91,4.2219]
[1738012113819,16.43398535,237.04,236.89,1.3578]
[1738012114227,16.43398535,237.04,236.94,4.25273678]
[1738012115627,4.2208,236.99,236.94,4.25273678]
[1738012115830,16.43398535,237.04,236.96,4.221]
[1738012116025,16.43398535,237.08,236.94,0.03123678]
[1738012116231,4.2196,237.05,236.89,1.3578]
[1738012116427,16.43398535,237.08,236.89,1.3578]
[1738012116634,4.2203,237.01,236.99,0.03046158]
[1738012116829,16.43398535,237.08,236.99,0.03046158]
[1738012117235,4.2204,237.0,236.99,0.03046158]
[1738012118036,4.2203,237.01,236.99,0.03046158]
[1738012118327,16.43398535,237.04,236.99,0.03046158]
[1738012118926,4.2204,237.0,236.99,0.03046158]
[1738012121038,16.43398535,237.04,236.99,0.03046158]
[1738012121437,16.43398535,237.04,236.99,4.25106158]
[1738012121735,16.43398535,237.04,236.99,0.03046158]
[1738012122739,4.2199,237.03,236.99,0.03046158]
[1738012123035,16.43398535,237.04,236.99,0.03046158]
[1738012123434,20.65388535,237.04,236.99,0.03046158]
[1738012123635,16.43398535,237.04,236.99,0.03046158]
[1738012124035,32.8679707,237.0,236.71,10.21315603]
[1738012124342,16.43398535,236.9,236.72,4.1405]
[1738012124742,16.43398535,236.94,236.72,4.1405]
[1738012124943,16.43398535,236.94,236.73,16.43398535]
[1738012125136,0.02992393,236.85,236.84,4.2233]
[1738012125338,16.43398535,236.9,236.72,4.98538002]
[1738012125645,0.03086609,236.87,236.84,4.2232]
[1738012126333,0.03086609,236.87,236.82,0.03144364]
[1738012126937,4.25376609,236.87,236.82,0.03144364]
[1738012127143,0.03086609,236.87,236.82,0.03144364]
[1738012127436,0.03086609,236.87,236.83,4.2234]
[1738012127642,0.03086609,236.87,236.82,0.03144364]
[1738012128945,16.43398535,237.0,236.82,0.03144364]
[1738012129244,16.43398535,237.0,236.78,10.21315603]
[1738012129439,16.43398535,236.95,236.78,10.21315603]
[1738012129844,16.43398535,236.95,236.77,16.43398535]
[1738012130139,1.3949,237.08,236.84,0.02971273]
[1738012130445,20.65348535,237.06,236.99,4.2205]
[1738012130646,16.43398535,237.06,236.94,0.03041642]
[1738012130843,16.43398535,237.06,236.89,2.6737]
[1738012131042,4.2199,237.03,236.98,0.02916627]
[1738012131544,16.43398535,237.06,236.98,0.02916627]
[1738012131847,16.43398535,237.02,236.98,0.02916627]
[1738012132550,16.43398535,237.0,236.82,10.21315603]
[1738012132741,16.43398535,236.95,236.82,11.50505603]
[1738012132938,4.2216,236.94,236.85,4.2229]
[1738012133238,16.43398535,237.0,236.82,1.2919]
[1738012133442,16.43398535,236.96,236.82,1.2919]
[1738012133642,16.43398535,237.0,236.82,1.2919]
[1738012133847,0.03015701,236.93,236.89,0.02910328]
[1738012134046,4.2197,237.04,236.97,4.2209]
[1738012134547,4.6189,237.14,236.97,4.2209]
[1738012134751,4.2199,237.03,236.96,4.2211]
[1738012134951,3.28,237.13,236.9,1.3158]
[1738012135155,4.2203,237.01,236.97,0.02720388]
[1738012136044,3.28,237.13,236.97,0.02720388]
[1738012136449,4.2194,237.06,236.99,4.2206]
[1738012136646,3.28,237.13,236.97,0.02720388]
[1738012136849,3.28,237.13,236.9,1.3158]
[1738012137045,16.43398535,237.05,237.01,0.02773759]
[1738012137246,1.4129,237.13,237.01,0.02773759]
[1738012138059,4.2189,237.09,237.02,4.22]
[1738012138257,1.4129,237.13,237.01,0.02773759]
[1738012138453,16.43398535,237.04,237.01,0.02773759]
[1738012139253,4.2192,237.07,237.01,0.02773759]
[1738012139461,17.77288535,237.14,237.01,0.02773759]
[1738012139950,16.43398535,237.1,237.01,0.02773759]
[1738012140657,16.43398535,237.06,237.01,0.02773759]
[1738012141252,16.43398535,237.02,237.01,0.02773759]
[1738012141654,16.43398535,237.06,237.01,0.02773759]
[1738012142155,16.43398535,237.1,237.01,0.02773759]
[1738012142551,1.3389,237.14,237.01,0.02773759]
[1738012142758,4.2185,237.11,237.04,4.2197]
[1738012142953,16.43398535,237.05,236.88,10.21315603]
[1738012143151,16.43398535,237.0,236.92,4.2218]
[1738012143959,20.65458535,237.0,236.92,4.2218]
[1738012144149,3.3,237.06,236.94,4.2215]
[1738012144150,16.43398535,237.04,236.94,4.2215]
[1738012144356,0.02773759,236.98,236.94,0.02816579]
[1738012145960,16.43398535,236.96,236.8,1.3235]
[1738012146460,16.43398535,236.92,236.8,1.3235]
[1738012146759,16.43398535,236.83,236.68,10.21315603]
[1738012146956,16.43398535,236.83,236.68,12.95035603]
[1738012147154,16.43398535,236.83,236.75,0.02859145]
[1738012147155,4.2245,236.78,236.75,0.02859145]
[1738012147552,0.02765579,236.8,236.75,0.02859145]
[1738012147956,4.25175579,236.8,236.75,0.02859145]
[1738012148157,16.43398535,236.79,236.75,0.02859145]
[1738012148362,16.43398535,236.79,236.62,1.3972]
[1738012148560,16.43398535,236.71,236.54,2.7338]
[1738012149158,16.43398535,236.75,236.56,16.43398535]
[1738012149562,0.02839026,236.68,236.63,0.02914824]
[1738012150161,3.3,236.8,236.64,16.43398535]
[1738012150367,16.43398535,236.91,236.72,16.43398535]
[1738012150565,4.2219,236.93,236.83,4.2233]
[1738012150869,16.43398535,237.0,236.81,16.43398535]
[1738012151072,16.43398535,237.0,236.73,1.3005]
[1738012151073,4.2216,236.94,236.83,4.2234]
[1738012151260,16.43398535,236.96,236.82,1.3733]
[1738012151464,16.43398535,236.96,236.86,0.03134692]
[1738012151465,0.03072255,236.91,236.86,0.03134692]
[1738012152758,0.03072255,236.91,236.89,4.2223]
[1738012153359,0.03072255,236.91,236.87,4.2227]
[1738012153563,0.03072255,236.91,236.86,0.03134692]
[1738012153967,0.03072255,236.91,236.89,4.2224]
[1738012154270,26.70514576,237.04,236.86,0.03134692]
[1738012154564,4.2205,237.0,236.83,26.70514576]
[1738012155371,0.02538202,236.94,236.89,0.0289507]
[1738012155574,4.2207,236.99,236.83,26.70514576]
[1738012155978,0.02538202,236.94,236.89,0.02994776]
[1738012156272,26.70514576,237.0,236.83,26.70514576]
[1738012156465,0.02538202,236.94,236.89,0.03208964]
[1738012156668,0.02538202,236.94,236.9,4.2222]
[1738012156864,0.02538202,236.94,236.89,0.03208964]
[1738012157970,0.02538202,236.94,236.89,4.25448964]
[1738012158170,0.02538202,236.94,236.89,0.03208964]
[1738012160671,4.2221,236.91,236.89,0.03208964]
[1738012162265,4.2219,236.92,236.89,0.03208964]
[1738012162474,0.02538202,236.94,236.89,0.03208964]
[1738012162975,4.222,236.92,236.89,0.03208964]
[1738012163182,0.02538202,236.94,236.89,0.03208964]
[1738012163475,0.02538202,236.94,236.89,4.25438964]
[1738012164279,0.02538202,236.94,236.89,0.03208964]
[1738012166373,0.02538202,236.94,236.91,4.2219]
[1738012166567,0.02538202,236.94,236.89,0.03208964]
[1738012166769,0.02538202,236.94,236.89,4.25448964]
[1738012166974,0.02538202,236.94,236.89,0.03208964]
[1738012167380,4.24698202,236.94,236.9,4.2222]
[1738012167579,0.02538202,236.94,236.89,0.03208964]
[1738012167979,0.02538202,236.94,236.91,4.2219]
[1738012168278,0.02538202,236.94,236.89,0.03208964]
[1738012168475,4.2217,236.93,236.89,0.03208964]
[1738012168681,0.02538202,236.94,236.89,0.03208964]
[1738012169181,4.24708202,236.94,236.89,0.03208964]
[1738012169585,4.2218,236.93,236.89,0.03208964]
[1738012170082,4.2223,236.9,236.89,0.03208964]
[1738012171075,26.70514576,236.91,236.75,2.7436]
[1738012171684,26.70514576,236.95,236.75,2.7436]
[1738012171878,26.70514576,236.95,236.76,26.70514576]
[1738012172076,4.222,236.92,236.87,4.2227]
[1738012172378,4.25282708,236.92,236.87,4.2227]
[1738012172580,4.25282708,236.92,236.87,4.2540659]
[1738012172784,0.03082708,236.92,236.87,0.0313659]
[1738012172986,0.03082708,236.92,236.91,4.2221]
[1738012173484,4.2205,237.0,236.88,1.3016]
[1738012173675,4.2205,237.0,236.88,4.0856]
[1738012174075,4.2207,236.99,236.94,4.2214]
[1738012174678,4.24734458,236.99,236.94,4.25215936]
[1738012175380,0.02664458,236.99,236.94,0.03075936]
[1738012175679,26.73179034,236.99,236.94,0.03075936]
[1738012176078,4.2212,236.96,236.94,0.03075936]
[1738012176277,26.73179034,236.99,236.94,0.03075936]
[1738012176685,4.2214,236.95,236.94,0.03075936]
[1738012177289,26.70514576,236.95,236.82,2.8155]
[1738012177682,26.70514576,236.91,236.81,4.2237]
[1738012177885,4.2226,236.88,236.7,1.4044]
[1738012178088,26.70514576,236.91,236.7,1.4044]
[1738012178484,0.02950945,236.83,236.7,1.4044]
[1738012178687,0.02950945,236.83,236.78,0.02756208]
[1738012179290,0.02950945,236.83,236.82,4.2237]
[1738012179887,26.70514576,236.99,236.78,0.02756208]
[1738012180091,26.70514576,237.03,236.81,26.70514576]
[1738012180294,26.70514576,237.03,236.82,2.708]
[1738012180794,4.221,236.98,236.93,4.2217]
[1738012180990,0.02789449,236.95,236.9,0.03047187]
[1738012181200,26.70514576,236.99,236.82,2.708]
[1738012181493,4.2221,236.92,236.9,0.03036511]
[1738012181694,4.2221,236.92,236.87,4.2228]
[1738012181894,26.70514576,237.0,236.82,2.708]
[1738012181895,30.92744576,236.9,236.89,0.03182138]
[1738012182688,26.70514576,236.9,236.89,0.03182138]
[1738012184087,30.92744576,236.9,236.89,0.03182138]
[1738012184287,26.70514576,236.9,236.68,26.70514576]
[1738012184491,29.96514576,236.95,236.72,26.70514576]
[1738012184690,29.96514576,236.95,236.76,26.70514576]
[1738012184896,26.70514576,236.99,236.76,26.70514576]
[1738012185096,26.70514576,236.99,236.77,1.3141]
[1738012185400,1.74e-05,236.9,236.86,0.02831411]
[1738012185895,26.70514576,237.03,237.0,4.2205]
[1738012186090,26.70514576,237.03,236.85,2.7835]
[1738012186495,30.92514576,237.03,236.98,4.2208]
[1738012186997,4.2207,236.99,236.98,0.02804933]
[1738012187296,26.73537557,237.03,236.85,2.7835]
[1738012187794,26.70514576,237.07,236.88,26.70514576]
[1738012188091,26.70514576,237.07,236.89,1.4289]
[1738012188396,4.2195,237.06,236.89,1.4289]
[1738012188597,0.02906667,237.0,236.96,0.02746731]
[1738012189095,0.02906667,237.0,236.99,4.2207]
[1738012190097,0.02906667,237.0,236.96,0.02746731]
[1738012190597,0.02906667,237.0,236.98,4.2209]
[1738012191099,0.02906667,237.0,236.96,0.02746731]
[1738012191100,4.219,237.09,237.03,4.22]
[1738012191489,16.40973526,237.1,236.97,1.3726]
[1738012191800,4.2194,237.07,237.01,4.2202]
[1738012192398,0.03039853,237.06,237.02,0.02762087]
[1738012193096,0.03039853,237.06,237.03,4.2199]
[1738012193994,0.03039853,237.06,237.02,0.02762087]
[1738012197103,0.03039853,237.06,237.04,4.2197]
[1738012197295,0.03039853,237.06,237.02,0.02762087]
[1738012198595,0.03039853,237.06,237.05,4.2197]
[1738012198794,0.03039853,237.06,237.02,0.02762087]
[1738012200500,5.524,237.16,237.1,4.2187]
[1738012200702,16.40973526,237.15,236.98,1.3625]
[1738012201103,4.2189,237.1,236.98,1.3625]
[1738012201303,16.40973526,237.11,236.98,1.3625]